{"text_format":"1","workbook":"xlsx","n_sheets":2,"sheets":["CATALOGO","RESUMEN"],"not_rendered":{"charts":0,"images":3,"macros":1,"external_links":0,"defined_names":3,"comments":0,"pivot_tables":0},"unopened":[],"bounds":{"document_bytes":16777216,"sheet_cells":100000,"rows_first":2000,"rows_last":500,"rows_between":2000,"halvings":0,"cell_chars":16384,"cell_head_chars":4096},"cells_cut":0,"cells_raw":0,"read":"whole","date_system":"1900"}

{"sheet":"CATALOGO","index":0,"n_rows":99,"n_cols":9,"rows_kept":99,"cut":false,"hidden":false,"merged":[[9,0,9,5],[2,0,2,5],[3,0,3,5],[4,0,4,5],[5,0,5,5],[7,0,7,5],[8,0,8,5]]}
[]
[]
["GOBIERNO DEL ESTADO DE BAJA CALIFORNIA SUR"]
["SECRETARIA DE PLANEACIÓN URBANA, INFRAESTRUCTURA Y MOVILIDAD"]
["DIRECCIÓN DE OBRAS PUBLICAS"]
["CATALOGO DE CONCEPTOS Y CANTIDADES DE OBRA"]
[]
["OBRA: AMPLIACION DEL INSTITUTO SUDCALIFORNIANO PARA LA INTUICION DE PERSONAS CON DISCAPACIDAD (ISIPD) ETAPA 1"]
["UBICACIÓN: LA PAZ"]
["MUNICIPIO: LA PAZ, B.C.S."]
[]
["CLAVE","CONCEPTO","UNIDAD","CANTIDAD","PRECIO UNITARIO","IMPORTE"]
["I.-","SEÑALIZACION",null,null,null,{"$f":"ROUND(D13*E13,2)","v":0}]
["01.-","SUMINISTRO Y COLOCACIÓN DE TAPIAL EN PERÍMETRO PARA LIMITACIÓN DEL ÁREA DE TRABAJO EN OBRA, ELABORADA CON POLÍN DE MADERA 4X4\" Y PETATILLO DE MADERA MODULADO A 2.44 M DE ANCHO X 2.50 M DE ALTO,  ANCLADO EN TERRENO A UNA PROFUNDIDAD DE 60CMS. INCLUYE: MATERIAL, MANO DE OBRA, HERRAMIENTA, EQUIPO Y TODO LO NECESARIO PARA SU CORRECTA EJECUCIÓN, TERMINADA LA OBRA ESTE MATERIAL (POLINES DE 4\"X4\" Y HOJAS DE PETATILLO) SE LLEVARA A LAS OFICINAS DE CAMPO DE LA DIRECCIÓN DE OBRAS PUBLICAS, DONDE INDIQUE LA SUPERVISIÓN.","ML",63,null,{"$f":"D14*E14","v":0}]
["02.-","SUMINISTRO Y COLOCACIÓN DE LETRERO DE OBRA DE 2.44 X 4.88 MTS., (VER CRITERIOS DE PROYECTO DE ARQUITECTURA PARA IMÁGENES GUBERNAMENTALES) A BASE DE PERFIL C-150 CAL 14 CON REFUERZO , SOBRE LAMINA GALVANIZADA LISA Y VINIL IMPRESO SEGÚN LEYENDA ESPECIFICADA DE GOBIERNO (STICKER) , A UNA ALTURA PROMEDIO DE 3.50 M, ANCLADO CON DADOS DE CONCRETO DE 0.40 X 0.40 X 1.00, INCLUYE: MATERIAL, MANO DE OBRA, EQUIPO Y TODO LO NECESARIO PARA SU CORRECTA EJECUCIÓN","PZA",1,null,{"$f":"D15*E15","v":0}]
["03.-","SUMINISTRO Y COLOCACIÓN DE PLACA DE MÁRMOL DE 63X63 CMS. ALUSIVA A LA ENTREGA DE LA OBRA, LEYENDA Y DISEÑO PROPORCIONADO POR SUPERVISIÓN, INCLUYE: MURETE (SEGÚN DISEÑO), FIJACIÓN A MURO, CORTINERO Y CORTINA DE TELA, APLANADO, PINTURA VINÍLICA, CONCEPTO TERMINADO.","PZA",1,null,{"$f":"D16*E16","v":0}]
[null,"SUBTOTAL SEÑALIZACIÓN",null,null,null,{"$f":"SUM(F14:F16)","v":0}]
["II.-","PRELIMINARES"]
["01.-","DEMOLICIÓN DE ELEMENTOS. MEDIDA EN SITIO, EJECUTADA EN FORMA MANUAL  OH MECANICA USANDO PICO, MARRO, CINCEL, CUÑAS, EQUIPO MENOR Y  TODO LO NECESARIO. INCLUYE: CARGO DIRECTO POR EL COSTO DE LA MANO DE OBRA REQUERIDA, CORTES DE VARILLAS, LIMPIEZA DE ÁREA, CARGA Y ACARREO DEL ESCOMBRO AL BANCO DE DESPERDICIO DE LA OBRA, RETIRO DEL MATERIAL FUERA DE LA OBRA (BASURERO MUNICIPAL), INDICADO POR LA DIRECCION DE OBRAS PUBLICAS, EQUIPO DE SEGURIDAD, INSTALACIONES ESPECIFICAS, DEPRECIACIÓN Y DEMÁS DERIVADOS DEL USO DE HERRAMIENTA Y EQUIPO EN CUALQUIER  ALTURA Y CUALQUIER NIVEL Y TODO LO NECESARIO PARA SU CORRECTA EJECUCION."]
[null,"ELEMENTOS DE  CONCRETO ARMADO (MURETE EXISTENTE)","M2",150,null,{"$f":"D20*E20","v":0}]
[null,"SUBTOTAL DE PRELIMINARES",null,null,null,{"$f":"F20","v":0}]
["III.-","CIMENTACION"]
["01.-","TRAZO Y NIVELACIÓN, CON EQUIPO TOPOGRÁFICO,  INCLUYE: CARGO DIRECTO POR EL COSTO DE LOS MATERIALES Y MANO DE OBRA QUE INTERVENGAN, LOCALIZACIÓN GENERAL, LOCALIZACIÓN DE ENTRE EJES, SEÑALAMIENTOS, ESTACADO, BANCOS DE NIVEL, MOJONERAS, LIMPIEZA Y RETIRO DE SOBRANTES FUERA DE OBRA, AL BANCO DE  DESPERDICIO INDICADO POR EL LA DIRECCIÓN DE OBRAS PUBLICAS, EQUIPO DE SEGURIDAD, INSTALACIONES ESPECÍFICAS, DEPRECIACIÓN Y DEMÁS DERIVADOS DEL USO DE HERRAMIENTA Y EQUIPO. A EJES EN DESPLANTE DE EDIFICIOS.","M2",149,null,{"$f":"D23*E23","v":0}]
["02.-","ZAPATA CORRIDA (ZC-1) DE  DE 0.60 X 0.15 MTS. CONCRETO F'C=250 KG/CM2.  ARMADA CON  4 VARILLA DEL # 3 A LONGITUDINALES Y  BASTONES VARILLA DEL # 3 CADA 20 CMS., Y CONTRA TRABE DE 15 X 30 CMS. ARMADA CON 4 VARILLAS DEL # 4 Y ESTRIBOS DEL # 2 A CADA 15 CMS., INCLUYE :TRAZO, NIVELACION, EXCAVACION, PLANTILLA  F'C=100 KG/CM2, RELLENO, AFINE,COMPACTACION, IMPERMEABILIZANTE, HERRAMIENTA Y MANO DE OBRA QUE INTERVENGAN, ELABORACIÓN DEL CONCRETO, FLETE A OBRA, DESPERDICIO, VERTIDO, ACARREO HASTA EL LUGAR DE SU UTILIZACIÓN, HABILITADO DEL ACERO DE REFUERZO, ANCLAJES,  COLOCACIÓN, AMARRES, CIMBRADO, DESCIMBRADO, LIMPIEZA Y RETIRO DE SOBRANTES FUERA DE OBRA, EQUIPO DE SEGURIDAD, INSTALACIONES ESPECÍFICAS, DEPRECIACIÓN Y DEMÁS DERIVADOS DEL USO DE HERRAMIENTA Y EQUIPO EN CUALQUIER NIVEL, (VER DETALLE DE ZAPATA ZC-01)","ML",14.01,null,0]
["03.-","FABRICACION DE ZAPATA ZA-01 AISLADA DE CONCRETO REFORZADO DE SECCION 2.30 X 2.30 MTS. X  0.25 MTS. DE ESPESOR CONCRETO F'C=250 KG/CM2.  CON PARRILLA ARMADA SUPERIOR  CON  VARILLA  DEL # 3 A CADA 25 CMS. AMBOS SENTIDOS, Y PARRILLA INFERIOR CON  VARILLA  DEL # 5 A CADA 20 CMS., DADO D-02 DE CONCRETO REFORZADO DE SECCION 45 x 120 CMS  ARMADA CON 16 VARILLAS DEL # 6 Y  3 ESTRIBOS DEL # 3 A CADA 15 CMS., INCLUYE: TRAZO, NIVELACION, EXCAVACION, PLANTILLA  F'C=100 KG/CM2, RELLENO, AFINE,COMPACTACION, IMPERMEABILIZANTE, HERRAMIENTA Y MANO DE OBRA QUE INTERVENGAN, ELABORACIÓN DEL CONCRETO, FLETE A OBRA, DESPERDICIO, VERTIDO, ACARREO HASTA EL LUGAR DE SU UTILIZACIÓN, HABILITADO DEL ACERO DE REFUERZO, ANCLAJES,  COLOCACIÓN, AMARRES, CIMBRADO, DESCIMBRADO, LIMPIEZA Y RETIRO DE SOBRANTES FUERA DE OBRA, EQUIPO DE SEGURIDAD, INSTALACIONES ESPECÍFICAS, DEPRECIACIÓN Y DEMÁS DERIVADOS DEL USO DE HERRAMIENTA Y EQUIPO EN CUALQUIER NIVEL, (VER DETALLE DE ZAPATA ZA-01).","PZA",1,null,0]
["06.-","FABRICACION DE ZAPATA ZA-04 AISLADA DE CONCRETO REFORZADO DE SECCION 2.80 X 2.80 MTS. X 0.30 MTS.. DE ESPESOR  CONCRETO F'C=250 KG/CM2.  CON PARRILLA ARMADA SUPERIOR  CON  VARILLA DEL # 3 A CADA 25 CMS. AMBOS SENTIDOS, Y PARRILLA INFERIOR CON  VARILLA DEL # 5 A CADA 15 CMS., DADO D-02 DE CONCRETO REFORZADO DE SECCION 45 x 120 CMS  ARMADA CON 16 VARILLAS DEL # 6 Y  3 ESTRIBOS DEL # 3 A CADA 15 CMS., INCLUYE: TRAZO, NIVELACION, EXCAVACION, PLANTILLA  F'C=100 KG/CM2, RELLENO, AFINE,COMPACTACION, IMPERMEABILIZANTE, HERRAMIENTA Y MANO DE OBRA QUE INTERVENGAN, ELABORACIÓN DEL CONCRETO, FLETE A OBRA, DESPERDICIO, VERTIDO, ACARREO HASTA EL LUGAR DE SU UTILIZACIÓN, HABILITADO DEL ACERO DE REFUERZO, ANCLAJES,  COLOCACIÓN, AMARRES, CIMBRADO, DESCIMBRADO, LIMPIEZA Y RETIRO DE SOBRANTES FUERA DE OBRA, EQUIPO DE SEGURIDAD, INSTALACIONES ESPECÍFICAS, DEPRECIACIÓN Y DEMÁS DERIVADOS DEL USO DE HERRAMIENTA Y EQUIPO EN CUALQUIER NIVEL, (VER DETALLE DE ZAPATA ZA-04).","PZA",1,null,0]
["08.-","FABRICACION DE ZAPATA ZA-06 AISLADA DE CONCRETO REFORZADO DE SECCION 3.50 X 3.50 MTS. X 0.30 MTS. DE ESPESOR  CONCRETO F'C=250 KG/CM2.  CON PARRILLA ARMADA SUPERIOR  CON  VARILLA DEL # 4 A CADA 25 CMS. AMBOS SENTIDOS, Y PARRILLA INFERIOR CON  VARILLA DEL # 5 A CADA 20 CMS., DADO D-02 DE CONCRETO REFORZADO DE SECCION 45 x 120 CMS  ARMADA CON 16 VARILLAS DEL # 6 Y  3 ESTRIBOS DEL # 3 A CADA 15 CMS., INCLUYE: TRAZO, NIVELACION, EXCAVACION, PLANTILLA  F'C=100 KG/CM2, RELLENO, AFINE,COMPACTACION, IMPERMEABILIZANTE, HERRAMIENTA Y MANO DE OBRA QUE INTERVENGAN, ELABORACIÓN DEL CONCRETO, FLETE A OBRA, DESPERDICIO, VERTIDO, ACARREO HASTA EL LUGAR DE SU UTILIZACIÓN, HABILITADO DEL ACERO DE REFUERZO, ANCLAJES,  COLOCACIÓN, AMARRES, CIMBRADO, DESCIMBRADO, LIMPIEZA Y RETIRO DE SOBRANTES FUERA DE OBRA, EQUIPO DE SEGURIDAD, INSTALACIONES ESPECÍFICAS, DEPRECIACIÓN Y DEMÁS DERIVADOS DEL USO DE HERRAMIENTA Y EQUIPO EN CUALQUIER NIVEL, (VER DETALLE DE ZAPATA ZA-06).","PZA",2,null,0]
["09.-","CONSTRUCCION DE MURO DE ENRASE A BASE A 3 HILADAS A BASE DE BLOCK HUECO DE CONCRETO DE 15x20x40, ASENTADO CON MORTERO CEMENTO ARENA  PROP 1:4 Y CELDAS RELLENAS DE CONCRETO F'C= 150KG/CM2, VARILLA DE REFUERZO  DE 3/8\" @ 3ER CELDA ANCLADA A CIMENTACION, INCLUYE PRECIO DIRECTO DE LOS MATERIALES, MANO DE OBRA, HERRAMIENTA Y EQUIPO.","M2",6.16,null,0]
["10.-","ANCLAJE DE CASTILLOS (K-01) DE 15 X 15 CMS. HASTA 1.00 MTS. DE DESARROLLO, ARMADO CON 4 VARILLAS No.3 Y ESTRIBOS No.2 A/C 0.15 MTS. CONCRETO F' C=200 KG/CM2, INCLUYE; CARGO DIRECTO POR EL COSTO DE LOS MATERIALES, HERRAMIENTA Y MANO DE OBRA QUE INTERVENGAN, ELABORACIÓN DEL CONCRETO, FLETE A OBRA, DESPERDICIO, VERTIDO, ACARREO HASTA EL LUGAR DE SU UTILIZACIÓN, VIBRADO Y CURADO, PRUEBAS DE RESISTENCIA DEL CONCRETO, HABILITADO DEL ACERO DE REFUERZO, ANCLAJES,  COLOCACIÓN, AMARRES, CIMBRADO, DESCIMBRADO, LIMPIEZA Y RETIRO DE SOBRANTES FUERA DE OBRA, EQUIPO DE SEGURIDAD, INSTALACIONES ESPECÍFICAS, DEPRECIACIÓN Y DEMÁS DERIVADOS DEL USO DE HERRAMIENTA Y EQUIPO EN CUALQUIER NIVEL.","PZA",18,null,0]
["12.-","CADENA PARA CERRAMIENTO (CD-01) EN CIMENTACIÓN DE 0.15X0.20 MTS., ARMADA CON 4 VARILLAS No.3 Y ESTRIBOS No.2 A/C 0.20 MTS., CONCRETO F'C=250 KG/CM2, INCLUYE: INCLUYE; CARGO DIRECTO POR EL COSTO DE LOS MATERIALES, HERRAMIENTA Y MANO DE OBRA QUE INTERVENGAN, ELABORACIÓN DEL CONCRETO, FLETE A OBRA, DESPERDICIO, VERTIDO, ACARREO HASTA EL LUGAR DE SU UTILIZACIÓN, VIBRADO Y CURADO, PRUEBAS DE RESISTENCIA DEL CONCRETO,  HABILITADO DEL ACERO DE REFUERZO, ANCLAJES,  COLOCACIÓN, AMARRES, CIMBRADO, DESCIMBRADO, LIMPIEZA Y RETIRO DE SOBRANTES FUERA DE OBRA, EQUIPO DE SEGURIDAD, INSTALACIONES ESPECÍFICAS, DEPRECIACIÓN Y DEMÁS DERIVADOS DEL USO DE HERRAMIENTA Y EQUIPO EN CUALQUIER NIVEL.","ML",14.01,null,0]
["13.-","FABRICACIÓN DE TRABE DE LIGA (TL-01) DE SECCIÓN DE 30 x 80 CMS. CON CONCRETO REFORZADO, ARMADA CON 6 VARILLAS #6 Y 4 VARILLAS #4, ESTRIBOS # 3 @ 20 CM. CONCRETO F’C= 250 KG/CM2. T.M.A. ¾”. INCLUYE: MANO DE OBRA, MATERIALES Y HERRAMIENTA DE OBRA QUE INTERVENGAN, ELABORACIÓN DEL CONCRETO, FLETE A OBRA, DESPERDICIO, VERTIDO, ACARREO HASTA EL LUGAR DE SU UTILIZACIÓN, HABILITADO DEL ACERO DE REFUERZO, ANCLAJES,  COLOCACIÓN, AMARRES, CIMBRADO, DESCIMBRADO, LIMPIEZA Y RETIRO DE SOBRANTES FUERA DE OBRA, EQUIPO DE SEGURIDAD, INSTALACIONES ESPECÍFICAS, DEPRECIACIÓN Y DEMÁS DERIVADOS DEL USO DE HERRAMIENTA Y EQUIPO EN CUALQUIER NIVEL, (VER DETALLE DE TRABE DE LIGA TL-01).","ML",36.880000000000003,null,0]
["14.-","FABRICACIÓN DE TRABE DE LIGA (TL-02) DE SECCIÓN DE 30 x 80 CMS. CON CONCRETO REFORZADO, ARMADA CON 6 VARILLAS #6 Y 4 VARILLAS #4, ESTRIBOS # 3 @ 20 CM. CONCRETO F’C= 250 KG/CM2. T.M.A. ¾”. INCLUYE: MANO DE OBRA, MATERIALES Y HERRAMIENTA DE OBRA QUE INTERVENGAN, ELABORACIÓN DEL CONCRETO, FLETE A OBRA, DESPERDICIO, VERTIDO, ACARREO HASTA EL LUGAR DE SU UTILIZACIÓN, HABILITADO DEL ACERO DE REFUERZO, ANCLAJES,  COLOCACIÓN, AMARRES, CIMBRADO, DESCIMBRADO, LIMPIEZA Y RETIRO DE SOBRANTES FUERA DE OBRA, EQUIPO DE SEGURIDAD, INSTALACIONES ESPECÍFICAS, DEPRECIACIÓN Y DEMÁS DERIVADOS DEL USO DE HERRAMIENTA Y EQUIPO EN CUALQUIER NIVEL, (VER DETALLE DE TRABE DE LIGA TL-02).","ML",34.979999999999997,null,0]
[null,"SUBTOTAL DE CIMENTACIÓN",null,null,null,{"$f":"SUM(F23:F32)","v":0}]
["IV.-","ALBAÑILERÍA Y ACABADOS"]
["01.-","MUROS Y PRETILES DE BLOCK  DE HUECO DE CONCRETO DE 15X20X40 CMS. PEGADO CON MORTERO CEMENTO - ARENA 1:5, INCLUYE: ALINEACIÓN, PLOMEO, ESCUADRAS, ANDAMIOS, ELEVACIÓN DE MATERIALES, RECORTES, CORTES, DESPERDICIOS, ACARREOS DENTRO DE LA OBRA, MANO DE OBRA, CUALQUIER ALTURA, LIMPIEZA GRUESA, EMBOQUILLADOS, CONCEPTO TERMINADO A SATISFACCIÓN DE SUPERVISIÓN.","M2",40,null,{"$f":"D35*E35","v":0}]
[null,"EN PRETILES","M2",29.94,null,0]
["02.-","CASTILLO DE CONCRETO (K-01) DE 0.15X0.15 MTS., ARMADO CON 4 VARILLAS No.3 Y ESTRIBOS No.2 A/C 0.15 MTS. CONCRETO F' C=200 KG/CM2, INCLUYE; CARGO DIRECTO POR EL COSTO DE LOS MATERIALES, HERRAMIENTA Y MANO DE OBRA QUE INTERVENGAN, FLETE A OBRA, DESPERDICIO, ACARREO HASTA EL LUGAR DE SU UTILIZACIÓN, HABILITADO DEL ACERO DE REFUERZO, ANCLAJES,  CIMBRADO, DESCIMBRADO, ELABORACIÓN DEL CONCRETO,  VERTIDO, VIBRADO,  CURADO, PRUEBAS DE LABORATORIO, LIMPIEZA Y RETIRO DE SOBRANTES FUERA DE OBRA, EQUIPO DE SEGURIDAD, INSTALACIONES ESPECIFICAS, DEPRECIACIÓN Y DEMÁS DERIVADOS DEL USO DE HERRAMIENTA Y EQUIPO, EN CUALQUIER NIVEL.","ML",77.900000000000006,null,0]
["05.-","CADENA DE CERRAMIENTO (CD-01) DE CONCRETO F'C=200KG/CM2 DE 15x15 CMS, ARMADA CON 4 VARILLAS DE 3/8\" Y ESTRIBOS DE 1/4\" @ 15CMS,  INCLUYE; CARGO DIRECTO POR EL COSTO DE LOS MATERIALES, HERRAMIENTA Y MANO DE OBRA QUE INTERVENGAN, ELABORACIÓN DEL CONCRETO, FLETE A OBRA, DESPERDICIO, VERTIDO, ACARREO HASTA EL LUGAR DE SU UTILIZACIÓN, HABILITADO DEL ACERO DE REFUERZO, ANCLAJES,  COLOCACIÓN, AMARRES, CIMBRADO, DESCIMBRADO, LIMPIEZA Y RETIRO DE SOBRANTES FUERA DE OBRA, EQUIPO DE SEGURIDAD, INSTALACIONES ESPECÍFICAS, DEPRECIACIÓN Y DEMÁS DERIVADOS DEL USO DE HERRAMIENTA Y EQUIPO EN CUALQUIER NIVEL.","ML",62,null,0]
["06.-","CADENA DE CERRAMIENTO (CD-02) DE CONCRETO F'C=200KG/CM2 DE 20 x 40 CMS, ARMADA CON 4 VARILLAS DE 3/8\" Y ESTRIBOS DE 1/4\" @ 15CMS,  INCLUYE; CARGO DIRECTO POR EL COSTO DE LOS MATERIALES, HERRAMIENTA Y MANO DE OBRA QUE INTERVENGAN, ELABORACIÓN DEL CONCRETO, FLETE A OBRA, DESPERDICIO, VERTIDO, ACARREO HASTA EL LUGAR DE SU UTILIZACIÓN, HABILITADO DEL ACERO DE REFUERZO, ANCLAJES,  COLOCACIÓN, AMARRES, CIMBRADO, DESCIMBRADO, LIMPIEZA Y RETIRO DE SOBRANTES FUERA DE OBRA, EQUIPO DE SEGURIDAD, INSTALACIONES ESPECÍFICAS, DEPRECIACIÓN Y DEMÁS DERIVADOS DEL USO DE HERRAMIENTA Y EQUIPO EN CUALQUIER NIVEL.","ML",8,null,0]
["06.-","CADENA DE CERRAMIENTO (CD-03) DE CONCRETO F'C=200KG/CM2 DE 40 x 35CMS, ARMADA CON 4 VARILLAS DE 3/8\" Y ESTRIBOS DE 1/4\" @ 15CMS,  INCLUYE; CARGO DIRECTO POR EL COSTO DE LOS MATERIALES, HERRAMIENTA Y MANO DE OBRA QUE INTERVENGAN, ELABORACIÓN DEL CONCRETO, FLETE A OBRA, DESPERDICIO, VERTIDO, ACARREO HASTA EL LUGAR DE SU UTILIZACIÓN, HABILITADO DEL ACERO DE REFUERZO, ANCLAJES,  COLOCACIÓN, AMARRES, CIMBRADO, DESCIMBRADO, LIMPIEZA Y RETIRO DE SOBRANTES FUERA DE OBRA, EQUIPO DE SEGURIDAD, INSTALACIONES ESPECÍFICAS, DEPRECIACIÓN Y DEMÁS DERIVADOS DEL USO DE HERRAMIENTA Y EQUIPO EN CUALQUIER NIVEL.","ML",11.3,null,0]
["07.-","ENTORTADO EN AZOTEA A BASE DE MORTERO CEMENTO - ARENA 1:5, DE ESPESOR PROMEDIO DE 10 CM., INCLUYE: DISTRIBUCIÓN Y FORMACIÓN DE DIAMANTES Y PENDIENTES DE ACUERDO A PLANOS,  ELEVACIÓN DE MATERIALES, LIMPIEZA, PRUEBAS DE ESCURRIMIENTO, ACARREOS DENTRO DE LA OBRA, ANDAMIOS, ACABADO CON PLANA DE MADERA Y SIN IMPERFECCIONES, REMATE ESCOBILLADO CON LECHADA DE CEMENTO GRIS Y PEGACRETO,TODOS LOS MATERIALES NECESARIOS Y LA MANO DE OBRA, CONCEPTO TERMINADO A SATISFACCIÓN DE SUPERVISIÓN.","M2",155.04,null,0]
["08.-","SUMINISTRO Y COLOCACIÓN DE IMPERMEABILIZANTE SOBRE ENTORTADO DE AZOTEA, A BASE DE MATERIAL ELASTOMERICO BLANCO, 5 AÑOS DE GARANTÍA POR ESCRITO, INCLUYE: LIMPIEZA, BARRIDO, MALLA REFORZADA, RECORTES, TRASLAPES, ELEVACIÓN DEL MATERIAL, MANO DE OBRA, ANDAMIOS, SELLADO DE COLADERAS Y PUNTOS CRÍTICOS CON CEMENTO PLÁSTICO, CONCEPTO TERMINADO A SATISFACCIÓN DE SUPERVISIÓN.","M2",176.34,null,0]
["09.-","FIRME DE CONCRETO PRECOLADO F'C=200 KG/CM2 DE 10 CMS., DE ESPESOR, CON REFUERZO DE VARILLA DEL # 3 @ 35 CMS., INCLUYE: ACARREOS INTERNOS, VIBRADO, CURADO, NIVELADO A DETALLE Y VERIFICADOS SUS NIVELES, REGLEADO,  ACABADO CON PLANA DE MADERA LISTO PARA RECIBIR CUALQUIER ACABDO, MATERIALES, MANO DE OBRA, CONCEPTO A SATISFACCIÓN Y VERIFICACIÓN DE SUPERVISIÓN.","M2",155.03,null,0]
["11.-","SUMINISTRO Y COLOCACIÓN DE PISO VITRIFICADO DE PRIMERA CALIDAD MARCA INTERCERAMIC DE 80X80 CMS. MODELO TOKIO PORCELINATO RECTIFICADO, COLORIVORY , COLOCACIÓN CON VERIFICACIÓN, COLOCADO A HUESO, SOBRE FIRME, NIVELADO Y VERIFICADO, INCLUYE: TRAZO, RECORTES, DESPERDICIOS, PEGAPISO, ACARREOS DENTRO DE LA OBRA, ALMACENAMIENTO, EMBOQUILLADOR SIN ARENA, LIMPIEZA GRUESA Y FINA, CONCEPTO A SATISFACCIÓN DE SUPERVISIÓN.","M2",598.04,null,0]
["14.-","SUMINISTRO Y COLOCACIÓN DE ZOCLO VITRIFICADO  MISMO COLOR Y CALIDAD DE PISO A COLOCAR, INCLUYE: NIVELACIÓN, RECORTES, CORTES A MAQUINA Y A 45°, DESPERDICIOS, ACARREOS DENTRO DE LA OBRA, ALMACENAJE, PEGAPISO, EMBOQUILLADOR SIN ARENA, CHAFLÁN SUPERIOR TRIANGULAR DE PASTA Y/O CEMENTO BLANCO, LIMPIEZA GRUESA Y FINA, PEGADO A HUESO, MISMAS LÍNEAS Y CORTES DE PISO, CONCEPTO TERMINADO A SATISFACCIÓN DE SUPERVISIÓN.'DE 80X10 CMS. MODELO TOKIO COLOR IVORY PORCELINATO RECTIFICADO","ML",126,null,0]
["17.-","APLANADOS SOBRE MUROS DE BLOCK, Y A CUALQUIER SUPERFICIE, A BASE DE MORTERO CEMENTO - ARENA 1:5, ACABADO FLOTEADO FINO, INCLUYE: RESANES, PREPARACIÓN DE LA SUPERFICIE, REBABEOS, PLOMEO, FILOS, BOQUILLAS, A REGLA Y NIVEL, REPELLADOS, CURADOS, ANDAMIOS, ELEVACIÓN, ACARREOS DE MATERIALES, DENTRO DE LA OBRA, LIMPIEZA GRUESA Y FINA, MATERIALES NECESARIOS, MANO DE OBRA, CONCEPTO TERMINADO A SATISFACCIÓN DE SUPERVISIÓN.","M2",300,null,0]
["20.-","APLANADO DE YESO EN PLAFOND  A PLOMO, REGLA Y NIVEL INCLUYE; CARGO DIRECTO POR EL COSTO DE LOS MATERIALES Y MANO DE OBRA  QUE INTERVENGAN, FLETE A OBRA, DESPERDICIO, ACARREO HASTA EL LUGAR DE SU UTILIZACIÓN, ELABORACIÓN DE MEZCLA HECHA EN OBRA, PREPARACIÓN DE LA SUPERFICIE,  PICADO EN SU CASO, PERFILAR HUECOS PARA INSTALACIONES, BOQUILLAS, REMATES, CORTES DE DIAMANTE EN JUNTAS, MAESTREADO, LIMPIEZA Y RETIRO DE SOBRANTES FUERA DE OBRA, EQUIPO DE SEGURIDAD, INSTALACIONES ESPECÍFICAS, DEPRECIACIÓN Y DEMÁS DERIVADOS DEL USO DE HERRAMIENTA Y EQUIPO, EN  CUALQUIER  NIVEL.","M2",155.04,null,0]
["21.-","SUMINISTRO Y APLICACIÓN DE PINTURA VINÍLICA, MARCA OSEL , APLICADA A DOS MANOS COMO  MINIMO ,DE PRIMERA CALIDAD, APLICADA EN MUROS (INTERIORES, EXTERIORES, PLAFOND, TRABES, COLUMNAS, DALAS Y SOBRE CUALQUIER ELEMENTO ETC.. ), SOBRE CUALQUIER SUPERFICIE Y/O APLANADOS DE MORTERO, ACABADO FLOTEADO FINO, INCLUYE: ANDAMIOS, ALTURAS  HASTA 4.50 M.  S.N.P.T., RECORTES, ACARREOS DENTRO DE LA OBRA, DESPERDICIOS, SELLADOR, RESANES, PROTECCIÓN A PISOS, MUEBLES, VENTANAS Y PUERTAS, REBABEOS, ADITAMENTOS DE APLICACIÓN, LIMPIEZA FINA Y GRUESA, MANO DE OBRA , MATERIALES Y TODO LO NECESARIO PARA SU CORRECTA APLICACIÓN, COLORES AUTORIZADOS POR SUPERVISIÓN.","M2",782,null,0]
["22.-","BAJADA PLUVIAL DE AZOTEA  CON  TUBO PVC SANITARIO DE 4\" Ø REFORZADO, INCLUYE: PREPARACION EN LOSA, COLADERA HELVEX MOD. 444X, FIJACIÓN A MUROS Y COLUMNAS CON CINTA GALVANIZADA A CADA METRO, CODOS PVC DE 4\"Ø 45°, PEGAMENTO, ENCOFRADO TIPO COLUMNA , A BASE DE: HERRAJES, POSTE CANAL, CANAL, TABLAROCA, PERFACINTA, REDIMIX, RANURAS, RESANES, ELEVACIÓN, FIJACIÓN, ACARREOS, RECORTES, DESPERDICIOS, CONCEPTO ACORDE A PLANO DE PROYECTO  Y A SATISFACCIÓN DE SUPERVISIÓN.","SAL",2,null,0]
["23.-","CHAFLÁN DE MORTERO 'SECCIÓN TRIANGULAR CON 10 CM. CADA CATETO, MORTERO CEMENTO-CAL-ARENA EN PROPORCIÓN 1-1.5-6 INCLUYE; CARGO DIRECTO POR EL COSTO DE LOS MATERIALES QUE INTERVENGAN, FLETE A OBRA, DESPERDICIO, ACARREO HASTA EL LUGAR DE SU UTILIZACIÓN, ELEVACIÓN, PICADO EN ÁREAS DE CONCRETO, ELABORACIÓN,  LECHAREADO, LIMPIEZA Y RETIRO DE SOBRANTES FUERA DE OBRA, EQUIPO DE SEGURIDAD, INSTALACIONES ESPECÍFICAS, DEPRECIACIÓN Y DEMÁS DERIVADOS DEL USO DE HERRAMIENTA Y EQUIPO, EN CUALQUIER NIVEL. ","ML",35,null,0]
["24.-","MURO DIVISORIO DE TABLA-ROCA, INCLUYE; CARGO DIRECTO POR EL COSTO DE LOS MATERIALES Y MANO DE OBRA QUE INTERVENGAN, FLETE A OBRA, DESPERDICIO, ACARREO HASTA EL LUGAR DE SU UTILIZACIÓN, TRAZO Y NIVELACIÓN CON PLACAS FIJADAS, CON TORNILLOS AUTORROSCANTES A CADA 30 CM. PERIMETRALMENTE Y A CADA 60 CM. DE SEPARACIÓN EN REFUERZOS INTERMEDIOS A UN BASTIDOR CONSTRUIDO A BASE DE CANALES Y POSTES DE LAMINA GALVANIZADA CAL. NO.26 Y ANCHOS DE ACUERDO A LO INDICADO, COLOCADOS A CADA 60 CM. FIJADOS A LA ESTRUCTURA Y UNIDOS SEGÚN PROCEDIMIENTO DEL FABRICANTE, ESQUINEROS, REBORDES, ALMACENAJE, ESTIBA, COLOCACIÓN, EMPLASTECIDO, CORTES, PERFILAR Y ABRIR HUECOS PARA INSTALACIONES, EMBOQUILLADOS, REFUERZOS PARA SALIDAS, JUNTAS DE CONTROL Y/O JUNTAS CONSTRUCTIVAS DONDE INDIQUE LA SUPERVISIÓN SEGÚN PROCEDIMIENTO DEL FABRICANTE, OBRAS DE PROTECCIÓN, LIMPIEZA Y RETIRO DE SOBRANTES FUERA DE OBRA, EQUIPO DE SEGURIDAD, INSTALACIONES ESPECÍFICAS, DEPRECIACIÓN Y DEMÁS DERIVADOS DEL USO DE HERRAMIENTA Y EQUIPO, EN CUALQUIER NIVEL. 'DE 96 MM. DE ESPESOR, CON PLACA DE 16 MM. EN DOS CARAS, CON CANALES Y POSTES DE LAMINA DE 63.5 MM. DE ANCHO.","M2",129,null,{"$f":"D51*E51","v":0}]
["25.-","FALSO PLAFOND DE TABLA-ROCA, INCLUYE; CARGO DIRECTO POR EL COSTO DE LOS MATERIALES Y MANO DE OBRA QUE INTERVENGAN, FLETE A OBRA, DESPERDICIO, ACARREO HASTA EL LUGAR DE SU UTILIZACIÓN, TRAZO Y NIVELACIÓN CON PLACAS FIJADAS, CON TORNILLOS AUTORROSCANTES A CADA 30 CM. PERIMETRALMENTE Y A CADA 60 CM. DE SEPARACIÓN EN REFUERZOS INTERMEDIOS A UN BASTIDOR CONSTRUIDO A BASE DE CANALES Y POSTES DE LAMINA GALVANIZADA CAL. NO.26 Y ANCHOS DE ACUERDO A LO INDICADO, COLOCADOS A CADA 60 CM. FIJADOS A LA ESTRUCTURA Y UNIDOS SEGÚN PROCEDIMIENTO DEL FABRICANTE, ESQUINEROS, REBORDES, ALMACENAJE, ESTIBA, COLOCACIÓN, EMPLASTECIDO, CORTES, PERFILAR Y ABRIR HUECOS PARA INSTALACIONES, EMBOQUILLADOS, REFUERZOS PARA SALIDAS, JUNTAS DE CONTROL Y/O JUNTAS CONSTRUCTIVAS DONDE INDIQUE LA SUPERVISIÓN SEGÚN PROCEDIMIENTO DEL FABRICANTE, OBRAS DE PROTECCIÓN, LIMPIEZA Y RETIRO DE SOBRANTES FUERA DE OBRA, EQUIPO DE SEGURIDAD, INSTALACIONES ESPECÍFICAS, DEPRECIACIÓN Y DEMÁS DERIVADOS DEL USO DE HERRAMIENTA Y EQUIPO, EN CUALQUIER NIVEL.  DE TABLAROCA DE 13 MM DE ESPESOR, INCLUYE: ACABADO EN YESO PULIDO.","M2",70,null,0]
[null,"SUBTOTAL DE ALBAÑILERÍA Y ACABADOS",null,null,null,{"$f":"SUM(F35:F52)","v":0}]
["V.-","ESTRUCTURA"]
["01.-","ELABORACION DE LOSA NERVADA DE CONCRETO F'C=200KG/CM2 DE 35 CMS DE ESPESOR Y CASETON DE POLIESTIRENO DE 60x60x30 CMS  CAPA DE COMPRESION DE 5 CMS DE ESPESOR Y MALLA 6-6/10/10, NERVADURAS (N-1)  DE 15 x 35 CMS REFORZADA CON 2 VARILLAS DE 5/8\"  Y ESTRIBOS CON ALAMBRON 3/8\" @ 20 CMS;  CARGO DIRECTO POR EL COSTO DE LOS MATERIALES, HERRAMIENTA Y MANO DE OBRA QUE INTERVENGAN, ELABORACIÓN DEL CONCRETO, FLETE A OBRA, DESPERDICIO, VERTIDO, ACARREO HASTA EL LUGAR DE SU UTILIZACIÓN, ANCLAJES,  COLOCACIÓN,  HABILITADO DEL ACERO DE REFUERZO, AMARRES, CIMBRADO, DESCIMBRADO, LIMPIEZA Y RETIRO DE SOBRANTES FUERA DE OBRA, EQUIPO DE SEGURIDAD, INSTALACIONES ESPECÍFICAS, DEPRECIACIÓN Y DEMÁS DERIVADOS DEL USO DE HERRAMIENTA Y EQUIPO EN CUALQUIER NIVEL. (VER DETALLE EN PLANO)","M2",155.04,null,{"$f":"D55*E55","v":0}]
["02.-","CONSTRUCCIÓN DE VIGA TIPO (T-01) DE 0.90 X 0.25 MTS., ARMADA CON 8 VARILLAS DE ACERO No.5 Y ESTRIBOS No.3 A/C 0.25 MTS., INCLUYE: CIMBRA, DESCIMBRA, TWINO EN ARISTAS,  MADRINAS, CARGADORES, PUNTALES,  CONCRETO PRECOLADO F'C=250 KG/CM2, BOMBEADO, VIBRADO, CURADO, CUALQUIER ALTURA, ANDAMIOS, MATERIALES Y  MANO DE OBRA, ELEVACIÓN, DESPERDICIOS, RECORTES, TAPONES, ALINEACIÓN, NIVELACIÓN, CALZAS, PRUEBAS DE RESISTENCIA DEL CONCRETO A 7, 14 Y 28 DÍAS, CONCEPTO TERMINADO A SATISFACCIÓN DE SUPERVISIÓN.","ML",16,null,0]
["03.-","CONSTRUCCIÓN DE VIGA TIPO (T-02) DE 0.95 X 0.25 MTS., ARMADA CON 8 VARILLAS DE ACERO No.5 Y ESTRIBOS No.3 A/C 0.25 MTS., INCLUYE: CIMBRA, DESCIMBRA, TWINO EN ARISTAS,  MADRINAS, CARGADORES, PUNTALES,  CONCRETO PRECOLADO F'C=250 KG/CM2, BOMBEADO, VIBRADO, CURADO, CUALQUIER ALTURA, ANDAMIOS, MATERIALES Y  MANO DE OBRA, ELEVACIÓN, DESPERDICIOS, RECORTES, TAPONES, ALINEACIÓN, NIVELACIÓN, CALZAS, PRUEBAS DE RESISTENCIA DEL CONCRETO A 7, 14 Y 28 DÍAS, CONCEPTO TERMINADO A SATISFACCIÓN DE SUPERVISIÓN.","ML",16,null,0,null,null," "]
["04.-","CONSTRUCCIÓN DE VIGA TIPO (T-03) DE 0.70 X 0.30 MTS., ARMADA CON 6 VARILLAS DE ACERO No.6 Y ESTRIBOS No.3 A/C 0.25 MTS., INCLUYE: CIMBRA, DESCIMBRA, TWINO EN ARISTAS,  MADRINAS, CARGADORES, PUNTALES,  CONCRETO PRECOLADO F'C=250 KG/CM2, BOMBEADO, VIBRADO, CURADO, CUALQUIER ALTURA, ANDAMIOS, MATERIALES Y  MANO DE OBRA, ELEVACIÓN, DESPERDICIOS, RECORTES, TAPONES, ALINEACIÓN, NIVELACIÓN, CALZAS, PRUEBAS DE RESISTENCIA DEL CONCRETO A 7, 14 Y 28 DÍAS, CONCEPTO TERMINADO A SATISFACCIÓN DE SUPERVISIÓN.","ML",19.3,null,0]
["05.-","CONSTRUCCIÓN DE VIGA TIPO (T-04) DE 1.50 X 0.25 MTS., ARMADA CON 8 VARILLAS DE ACERO No.5 Y  8 VARILLAS DE ACERO No.3 ADICIONALES Y ESTRIBOS No.3 A/C 0.25 MTS., INCLUYE: CIMBRA, DESCIMBRA, TWINO EN ARISTAS,  MADRINAS, CARGADORES, PUNTALES,  CONCRETO PRECOLADO F'C=250 KG/CM2, BOMBEADO, VIBRADO, CURADO, CUALQUIER ALTURA, ANDAMIOS, MATERIALES Y  MANO DE OBRA, ELEVACIÓN, DESPERDICIOS, RECORTES, TAPONES, ALINEACIÓN, NIVELACIÓN, CALZAS, PRUEBAS DE RESISTENCIA DEL CONCRETO A 7, 14 Y 28 DÍAS, CONCEPTO TERMINADO A SATISFACCIÓN DE SUPERVISIÓN.","ML",13.1,null,0]
["07.-","CONSTRUCCIÓN DE VIGA TIPO (T-06) DE 0.80 X 0.30 MTS., ARMADA CON 8 VARILLAS DE ACERO No.6 Y ESTRIBOS No.3 A/C 0.25 MTS., INCLUYE: CIMBRA, DESCIMBRA, TWINO EN ARISTAS,  MADRINAS, CARGADORES, PUNTALES,  CONCRETO PRECOLADO F'C=250 KG/CM2, BOMBEADO, VIBRADO, CURADO, CUALQUIER ALTURA, ANDAMIOS, MATERIALES Y  MANO DE OBRA, ELEVACIÓN, DESPERDICIOS, RECORTES, TAPONES, ALINEACIÓN, NIVELACIÓN, CALZAS, PRUEBAS DE RESISTENCIA DEL CONCRETO A 7, 14 Y 28 DÍAS, CONCEPTO TERMINADO A SATISFACCIÓN DE SUPERVISIÓN.","ML",19.2,null,0]
["08.-","CONSTRUCCIÓN DE VIGA TIPO (T-07) DE 1.50 X 0.25 MTS., ARMADA CON 8 VARILLAS DE ACERO No.5 Y  6 VARILLAS DE ACERO No.3 ADICIONALES Y ESTRIBOS No.3 A/C 0.25 MTS., INCLUYE: CIMBRA, DESCIMBRA, TWINO EN ARISTAS,  MADRINAS, CARGADORES, PUNTALES,  CONCRETO PRECOLADO F'C=250 KG/CM2, BOMBEADO, VIBRADO, CURADO, CUALQUIER ALTURA, ANDAMIOS, MATERIALES Y  MANO DE OBRA, ELEVACIÓN, DESPERDICIOS, RECORTES, TAPONES, ALINEACIÓN, NIVELACIÓN, CALZAS, PRUEBAS DE RESISTENCIA DEL CONCRETO A 7, 14 Y 28 DÍAS, CONCEPTO TERMINADO A SATISFACCIÓN DE SUPERVISIÓN.","ML",6.4,null,0]
["09.-","COLUMNA (CC-01) DE 0.60 X 0.40  MTS., ARMADA CON 10 VARILLAS DE ACERO No.6 Y 2 ESTRIBOS No.3 A/C 0.15 MTS., CONCRETO F'C=250 KG/CM2, TWINO EN ARISTAS, , CIMBRA,  DESCIMBRA,  MADRINAS, CARGADORES,  PUNTALES, BOMBEADO, COLADO, CURADO, VIBRADO, CUALQUIER ALTURA, ELEVACIÓN, ANDAMIOS, MATERIALES Y MANO DE OBRA, CONCEPTO TERMINADO A SATISFACCIÓN DE SUPERVISIÓN.","ML",15.6,null,0]
["10.-","COLUMNA (CC-02) DE 1.15 X 0.40  MTS., ARMADA CON 16 VARILLAS DE ACERO No.6 Y 3 ESTRIBOS No.3 A/C 0.15 MTS., CONCRETO F'C=250 KG/CM2, TWINO EN ARISTAS, , CIMBRA,  DESCIMBRA,  MADRINAS, CARGADORES,  PUNTALES, BOMBEADO, COLADO, CURADO, VIBRADO, CUALQUIER ALTURA, ELEVACIÓN, ANDAMIOS, MATERIALES Y MANO DE OBRA, CONCEPTO TERMINADO A SATISFACCIÓN DE SUPERVISIÓN.","ML",10.4,null,0]
[null,"SUBTOTAL DE ESTRUCTURA",null,null,null,{"$f":"SUM(F55:F63)","v":0}]
["VI.-","CANCELERIA Y HERRERIA"]
["01.-","SUMINISTRO Y COLOCACIÓN DE VENTANA DE PERFIL DE ALUMINIO COLOR NATURAL BRILLANTE, LINEA 3000, CRISTAL TEMPLADO DE 9 MM.,ACABADO FINAL CON PELÍCULA TIPO ESMERILADO, COLOCADO A HUESO, INCLUYE: FIJACIÓN SUPERIOR E INFERIOR, SILICÓN, REFUERZO VERTICAL EN JUNTAS Y ADITAMENTO DE FIJACIÓN Y EQUILIBRIO, MANEJO, ELEVACIÓN, PLOMO, ALINEACIÓN, VER DETALLE EN PLANO C-01, CONCEPTO A SATISFACCIÓN DE SUPERVISIÓN."]
[null,"V-2  DE 4.36 X 2.20 M. EN AREA DE SANITARIOS","PZA",1,null,{"$f":"D67*E67","v":0}]
[null,"V-3 CON UN FIJO SUPERIOR DE 0.55 X 1.17 MTS. Y UN FIJO INFERIOR DE 2.20 X 1.17 MTS. EN AREA DE ELEVACION PRINCIPAL.","PZA",13,null,0]
[null,"V-4 CON UN FIJO SUPERIOR DE 0.55 X 1.10 MTS Y UN FIJO INFERIOR DE 2.20 X 1.10 MTS. EN AREA DE ELEVACION PRINCIPAL.","PZA",2,null,0]
[null,"V-6 CON UN FIJO SUPERIOR DE 0.55 X 1.03 MTS Y UN FIJO INFERIOR DE 2.20 X 1.03 MTS. EN AREA DE ELEVACION PRINCIPAL.","PZA",2,null,0]
["02.-","SUMINISTRO, FABRICACIÓN Y COLOCACIÓN DE CRISTAL TEMPLADO COLOCADO A HUESO CON HERRAJES EN PISO Y PLAFON, ACABADO FINAL CON PELICULA AUTO ADHERIBLE CON TEXTURA ARENADA SOBRE TODA LA SUPERFICIE DEL CRISTAL, SEGÚN PROYECTO ESPECIFICO, SECCIÓN AUTORIZADO POR LA DIRECCIÓN DE OBRAS PUBLICAS, INCLUYE: (BISAGRA HIDRAULICA DE PISO DE DOBLE ACCION, CHAPA PARA PUERTA, JALADERA TUBULAR DE ACERO INOXIDABLE DE 1\", CONECTOR \"L\") SEGUN SEA EL CASO, CARGO DIRECTO POR EL COSTO DE LOS MATERIALES Y MANO DE OBRA QUE INTERVENGAN, FLETES ACARREOS, ELEVACIÓN, TRAZO, CORTES, PLOMEADO, ALINEACIÓN, PIJAS, TORNILLOS CADMINIZADOS, TAQUETES, FELPAS, VINILOS, HERRAJES, VINIL Y RETIRO DEL MISMO, ANCLAS, REFUERZOS, ESCUADRAS, FIJACIÓN, AMACIZADOS, SELLADO PERIMETRAL A BASE DE SILICÓN PLÁSTICO, AJUSTES, ANDAMIOS, RETIRO DE SOBRANTES FUERA DE LA OBRA, MATERIALES, EQUIPO, HERRAMIENTA Y MANO DE OBRA EN CUALQUIER NIVEL. (VER DETALLE EN PLANOS)",null,null,null,0]
[null,"PUERTA DOBLE  DEL TIPO P-1 EN MEDIDAS: PUERTA DOBLE DE 2.00 X 2.20 MTS. EN AREA DE ACCESO PPAL., INCLUYE ( SENSOR DE MOVIMIENT0O AUTOMATICO)","PZA",1,null,0]
[null,"CORREDIZA DEL TIPO P-4 EN MEDIDAS: 1.50 X 2.20 MTS. EN AREA DE CUBICULOS","PZA",6,null,0]
["03.-","SUMINISTRO  Y COLOCACION  DE PUERTA DE MADERA CENTRO SOLIDO ALDER DE 1 3/4\" DE ESPESOR, MARCO, CHAMBRANA INTERIOR Y EXTERIOR, CHAPA DE PALANCA CON LLAVE, BISAGRAS REFORZADAS TIPO LIBRO DE 3\", PINTURA Y COLOR DE ACUERDO A SUPERVISOR (UBICACIÓN EN TODO EL EDIFICIO, VER PLANO DE PROYECTO)",null,null,null,0]
[null,"DEL TIPO (P-2) DE 1.00 X 2.20 MTS.","PZA",7,null,0]
[null,"DEL TIPO (P-3) DE 0.80 X 2.20 MTS. EN AREA DE CUARTO SEPTICO","PZA",1,null,0]
[null,"SUBTOTAL DE CANCELERIA Y HERRERIA",null,null,null,{"$f":"SUM(F66:F76)","v":0}]
["VII.-","INSTALACIONES HIDROSANITARIAS "]
["05.-","CONSTRUCCION DE VERTEDERO DE ASEO, HECHO EN OBRA , INCLUYE:  LLAVE DE NARIZ DE 3/4\" CARGO DIRECTO POR EL COSTO DE LOS MATERIALES Y MANO DE OBRA REQUERIDA, FLETES, ACARREO HASTA EL LUGAR DE SU UTILIZACIÓN, ELABORACIÓN DEL CONCRETO Y MORTERO, COLADO, VIBRADO, CURADO, IMPERMEABILIZANTE INTEGRAL A RAZÓN DE 2 KG/SACO DE CEMENTO, LIMPIEZA Y RETIRO DE SOBRANTES FUERA DE OBRA, RECUBIERTO CON A BASE DE MURETES DE BLOCK DE 15X20X40 CMS, CON UNA ALTURA DE 0.60 M. EN EL EXTERIOR Y EN EL INTERIOR DE 0.50 M. , DE ANCHO DE 1.00 MTS Y 1.20 MTS DE LARGO, APLANADO INTERIOR Y EXTERIOR, FORRADA CON AZULEJO DEL QUE SE ESTA UTILIZANDO, ASENTADO CON MORTERO CEMENTO-ARENA 1:5,  RELLENO CON PEDACERÍA DE TABIQUE O GRAVA, CAPA DE MATERIAL INERTE DE 20 CM. DE ESPESOR, COMPACTADA Y HUMEDECIDA, PISO DE CONCRETO F'c=200 KG/CM2.","PZA",1,null,{"$f":"D79*E79","v":0}]
[null,"SUBTOTAL DE INSTALACIONES HIDROSANITARIAS ",null,null,null,{"$f":"SUM(F79:F79)","v":0}]
["IX.-.","SEÑALETICA Y OBRA EXTERIOR"]
["01.-","GUARNICIÓN DE CONCRETO F'C=150 KG/CM2 R.N. T.M.A. 19 MM. DE 15X20X40 CMS. DE SECCIÓN TRAPEZOIDAL, INCLUYE: EXCAVACION,  CONFINAMIENRO, CIMBRA METALICA, DESCIMBRADO, ELABORACIÓN, COLADO Y VIBRADO DEL CONCRETO, TRANSPORTE A LA SIGUIENTE POSICIÓN, ACABADO DEL LOMO PULIDO FINO, MATERIALES, MANO DE OBRA Y HERRAMIENTA, CONCEPTO A SATISFACCION DE SUPERVISION.","ML",61,null,{"$f":"D82*E82","v":0}]
["02.-","SUMINISTRO Y APLICACIÓN DE PINTURA VINÍLICA EN GUARNICION DE CONCRETO, MARCA COMEX O SIMILAR, EN COLOR BLANCO EN TRAMOS RECTOS, VERDE AREA DE ETACIONAMIENTOY ROJO EN CURVAS (PROHIBIDO ESTACIONARSE) A DOS MANOS,  INCLUYE: PREPARACIÓN DE LA SUPERFICIE, LIMPIEZA, MATERIALES, MANO DE OBRA Y HERRAMIENTA, CONCEPTO A SATISFACCION DE SUPERVISION.","ML",176,null,0]
["03.-"," FABRICACION DE BANQUETAS DE CONCRETO CON COLOR INTEGRAL DE 10 CMS. DE ESPESOR CON UNA RESISTENCIA DE F’C=200 KG/CM2, ACABADO ESTAMPADO TIPO PETATILLO RIVERSIDE SLATE CON COLOR BEIGE CON DESMOLDANTE GRIS  Y SELLADOR ; INCLUYE: TRAZO DE LOS TRABAJOS, ACERO DE REFUERZO CON UNA CAPA DE MALLA ELECTROSOLDADA 6-6/10-10,  VIBRADO, EQUIPO TOPOGRAFICO SEGUN DISEÑO, CORTE DE LOSAS CON DISCO DE DIAMANTE AL 1/3 DEL ESPESOR DE LA LOSA,  APLICACION DE ESPUMA DE POLIETILENO DE CELDA CERRADA CLOSED CELL BACKER ROD, COMO RESPALDO PARA SELLADORES ELASTOMERICOS, SELLADOR ACRILICO BASE SOLVENTE A DOS MANOS, RELLENO, CONFINAMIENTO CON MATERIAL PRODUCTO DE LA EXCAVACION, COMPACTACION AL 90% PROTOR, AFINE, CIMBRADO, COLADO, VIBRADO, DESCIMBRADO, CURADO DURANTE LOS PRIMEROS 7 DIAS DESPUES DEL COLADO, TENDIDO REGLEADO, EQUIPO, HERRAMIENTA, CONSUMIBLES,  MANO DE OBRA,  PROTECCION POR 48 HORAS Y TODO LO NECESARIO PARA LA CORRECTA EJECUCIÓN DE LOS TRABAJOS.  PRUEBAS DE LABORATORIO 7,14 Y 28 DIAS (P.U.O.T.)N DE SUPERVISIÓN, Y ÁREAS DE ACUERDO A PLANO DE PROYECTO.","M2",150,null,0]
["04.-","SUMINISTRO Y APLICACIÓN DE SÍMBOLO INTERNACIONAL DE DISCAPACIDAD EN MEDIDAS MARCADAS EN PLANO., PINTURA EPOXICA MATE Y COLORES ESPECÍFICOS EN PLANOS, INCLUYE: TRAZO EN ASFALTO, LIMPIA, MATERIALES, MANO DE OBRA, DESPERDICIOS, CONCEPTO TERMINADO A SATISFACCIÓN DE SUPERVISIÓN Y UBICACION EN PLANO DE PROYECTO.","PZA",3,null,0]
["05.-","SUMINISTRO Y APLICACIÓN DE PINTURA EPOXICA AZUL COLOR ESPECIFICO INTERNACIONAL EN ESPACIOS PARA DISCAPACIDAD, SOBRE SUPERFICIE ASFÁLTICA, INCLUYE: MATERIALES, DESPERDICIOS, TRAZO, CONCEPTO TERMINADO A SATISFACCIÓN DE SUPERVISIÓN Y PLANO DE PROYECTO.","M2",63,null,0]
["06.-","SUMINISTRO Y COLOCACIÓN  DE PISO PODO-TÁCTIL MARCA VITROMEX EN CAUCHO PARA USO RUDO, CON DIMENSIONES DE 20 X 20 CM ESPESOR DE 4 MM DE BASE MÁS 4 MM DE RELIEVE. INCLUYE ADHESIVO, LIMPIADOR Y BISELADOR, COLOR AMARILLO.","PZA",122,null,0]
["07.-","SUMINISTRO Y COLOCACIÓN  DE GUIA PODO-TÁCTIL MARCA VITROMEX EN CAUCHO PARA USO RUDO, DE 20 CM DE ANCHO, ESPESOR DE 4 MM DE BASE MÁS 4 MM DE RELIEVE. INCLUYE ADHESIVO, LIMPIADOR Y BISELADOR, COLOR AMARILLO.","ML",195,null,0]
["08.-","SUMINISTRO Y COLOCACIÓN DE TOPE PARA  ESTACIONAMIENTO UNIMAT TRAFFIC, DE 55 CMS. DE LARGO, 15 CMS. DE ALTO Y 10 CMS. DE ANCHO DE FABRICACIÓN HULE 100% RECICLADO, CINTA REFLEJANTE VULCANIZADA, COLOR AMARILLO, INCLUYE: MATERIALES Y MANO DE OBRA, PERFORACIONES, TAQUETES, ARANDELAS, GUASAS Y TODO LO NECESARIO PARA SU CORRECTA INSTALACIÓN, SEGUN PLANO DE PROYECTO Y A SATISFACCION DE SUPERVISION.","PZA",4,null,0]
["09.-","SUMINISTRO Y APLICACIÓN DE PINTURA REFLECTIVA PARA TRAFICO Y MICROESFERA EN RAYA DE 40 CMS. DE ANCHO PARA CRUCE PEATONAL EN COLOR AMARILLO, PREVIAMENTE AUTORIZADO POR SUPERVISIÓN, PARA PAVIMENTO, INCLUYE: LIMPIEZA, PREPARACIÓN DE LA SUPERFICIE, TRAZO, EQUIPO PREVENTIVO, EQUIPO PINTARAYAS, MANO DE OBRA, HERRAMIENTA Y MATERIALES, CONCEPTO A SATISFACCION DE SUPERVISION Y SEGUN PLANO DE PROYECTO.","ML",23,null,0]
["10.-","SUMINISTRO Y APLICACIÓN DE PINTURA REFLECTIVA COLOR BLANCO Y MICROESFERAS EN FLECHAS DIRECCIONALES PARA TRAFICO, EN SEÑALAMIENTO HORIZONTAL, APLICADA CON EQUIPO PINTARRALLAS, INCLUYE: TRAZO, ALINEACIÓN, LIMPIEZA, PREPARACIÓN DE LA SUPERFICIE, EQUIPO PREVENTIVO, MANO DE OBRA Y HERRAMIENTA, MATERIALES, (PLANO SEÑ-01-M-II.I, M-11.2 Y M-II.3) CONCEPTO A SATISFACCION DE SUPERVISION.","PZA",6,null,0]
["11.-","SUMINISTRO E INSTALACIÓN DE SEÑALAMIENTO VERTICAL  (71 X 71 CM POR LADO) RESTRICTIVA DE VELOCIDAD DE LÁMINA GALVANIZADA CALIBRE 16, CON CEJA PERIMETRAL DE ESPESOR 2.54 CM TROQUELADA DE UN SOLO GOLPE, FONDO EN VINIL REFLECTIVO COLOR BLANCO, EL ANILLO Y LA FRANJA DIAMETRAL SERAN EN ROJO Y EL SIMBOLO, LETRAS Y FILETE SERAN EN NEGRO, TRATADAS QUÍMICAMENTE CONTRA OXIDACIÓN; HERRAJES DE FIJACIÓN GALVANIZADAS; INCLUYE: POSTE DE CUADRADO DE 2\"X2\", CON TORNILLO DE 5/16\" X 1 1/4\" GUASA Y TUERCA ANCLAS CON VARILLA DE 3/8\" Y COLADO CON CONCRETO F'C= 100 KG/CM2,  MANO DE OBRA, MATERIALES, HERRAMIENTA Y EQUIPO, Y TODO LO NECESARIO PARA SU CORRECTA REALIZACIÓN. (SR-9)","PZA",1,null,0]
["12.-","SUMINISTRO Y COLOCACIÓN DE SEÑALAMIENTO VERTICAL RESTRICTIVO A BASE DE LAMINA GALVANIZADA LISA CAL. 16 FORMA OCTAGONAL CON CEJA DE 25 CMS. POR LADO, FONDO EN VINIL ROJO, POR LA PARTE FRONTAL, TEXTO EN PAPEL REFLEJANTE, POSTE CUADRADO CAL. 14 DE 2\"X2\", TORNILLOS 5/16 X 2 1/4\", GUASA Y TUERCA, ANCLAS, CON VARILLAS Ø 3/8\", COLADO EN CONCRETO F'C=150 KG/CM2 EN MUERTO DE 0.30X0.30X0.40 MTS, MATERIALES Y MANO DE OBRA, UBICACIÓN SEGÚN PLANO SEÑ - 01, CONCEPTO A SATISFACCIÓN DE SUPERVISIÓN (SR-6 ALTO).","PZA",1,null,0]
["13.-","SUMINISTRO Y COLOCACIÓN DE SEÑALAMIENTO VERTICAL RESTRICTIVO A BASE DE LAMINA GALVANIZADA LISA CAL. 16 FORMA OCTAGONAL CON CEJA DE 25 CMS. POR LADO, FONDO EN VINIL ROJO, POR LA PARTE FRONTAL, TEXTO EN PAPEL REFLEJANTE, POSTE CUADRADO CAL. 14 DE 2\"X2\", TORNILLOS 5/16 X 2 1/4\", GUASA Y TUERCA, ANCLAS, CON VARILLAS Ø 3/8\", COLADO EN CONCRETO F'C=150 KG/CM2 EN MUERTO DE 0.30X0.30X0.40 MTS, MATERIALES Y MANO DE OBRA, UBICACIÓN SEGÚN PLANO SEÑ - 01, CONCEPTO A SATISFACCIÓN DE SUPERVISIÓN (SR-6 ALTO).","PZA",1,null,0]
["14.-","SUMINISTRO E INSTALACIÓN DE SEÑALAMIENTO VERTICAL   (71 X 71 CM POR LADO) RESTRICTIVA PROHIBIDO VUELTA A LA IZQUIERDA, DE LÁMINA GALVANIZADA CALIBRE 16, CON CEJA PERIMETRAL DE ESPESOR 2.54 CM TROQUELADA DE UN SOLO GOLPE, FONDO EN VINIL REFLECTIVO COLOR BLANCO, EL ANILLO Y LA FRANJA DIAMETRAL SERAN EN ROJO Y EL SIMBOLO, LETRAS Y FILETE SERAN EN NEGRO, TRATADAS QUÍMICAMENTE CONTRA OXIDACIÓN; HERRAJES DE FIJACIÓN GALVANIZADAS; INCLUYE: POSTE DE CUADRADO DE 2\"X2\", CON TORNILLO DE 5/16\" X 1 1/4\" GUASA Y TUERCA ANCLAS CON VARILLA DE 3/8\" Y COLADO CON CONCRETO F'C= 100 KG/CM2,  MANO DE OBRA, MATERIALES, HERRAMIENTA Y EQUIPO, Y TODO LO NECESARIO PARA SU CORRECTA REALIZACIÓN. (SR-24)","PZA",1,null,0]
["15.-","SUMINISTRO E INSTALACIÓN DE SEÑALAMIENTO VERTICAL   (71 X 71 CM POR LADO) RESTRICTIVA PROHIBIDO CIRCULAR DE FRENTE, DE LÁMINA GALVANIZADA CALIBRE 16, CON CEJA PERIMETRAL DE ESPESOR 2.54 CM TROQUELADA DE UN SOLO GOLPE, FONDO EN VINIL REFLECTIVO COLOR BLANCO, EL ANILLO Y LA FRANJA DIAMETRAL SERAN EN ROJO Y EL SIMBOLO, LETRAS Y FILETE SERAN EN NEGRO, TRATADAS QUÍMICAMENTE CONTRA OXIDACIÓN; HERRAJES DE FIJACIÓN GALVANIZADAS; INCLUYE: POSTE DE CUADRADO DE 2\"X2\", CON TORNILLO DE 5/16\" X 1 1/4\" GUASA Y TUERCA ANCLAS CON VARILLA DE 3/8\" Y COLADO CON CONCRETO F'C= 100 KG/CM2,  MANO DE OBRA, MATERIALES, HERRAMIENTA Y EQUIPO, Y TODO LO NECESARIO PARA SU CORRECTA REALIZACIÓN. (SR-26)","PZA",1,null,0]
["16.-","SUMINISTRO Y COLOCACION DE BARANDAL TUBULAR DE 2\" DE ACERO INOXIDABLE  LINEA BARANDIMEX, MODELO KRUG FT, DISEÑO ESTANDAR CALIBRE 16, DEL TIPO 316 ANCLAJE A MURO O PISO CON ESCUADRAS DE ACERO  Y/O PLACAS EN SU CASO   4\" X 1/4\" CON 4 BARRENOS, ACABADO PULIDO SATINADO,  REFUERZOS HORIZONTALES A CADA 1.50 MTS. DE 1\" DE DIAMETRO,INCLUYE:  CARGO DIRECTO POR EL COSTO DE LOS MATERIALES QUE INTERVENGAN, FLETE A OBRA, DESPERDICIO, ACARREO HASTA EL LUGAR DE SU COLOCACION,CAPA DE POLIURETANO, TAQUETES EXPANSIVOS, TORNILLERIA DE ACERO INOXIDABLE, SOLDADURA, ELECTRODOS, PLANTA DE SOLDAR, TAPAR EL PISO CON LONA, LIMPIEZA Y RETIRO DE SOBRANTES FUERA DE OBRA, EQUIPO DE SEGURIDAD, INSTALACIONES ESPECÍFICAS, DEPRECIACIÓN Y DEMÁS DERIVADOS DEL USO DE HERRAMIENTA Y EQUIPO, EN CUALQUIER NIVEL.  (VER DETTALE DE ANCLAJE EN PLANO)","ML",43,null,0]
[null,"SUBTOTAL DE SEÑALÍTICA Y OBRA EXTERIOR",null,null,null,{"$f":"SUM(F82:F97)","v":0}]
[null,"SUMA TOTAL SIN I.V.A.",null,null,null,{"$f":"SUM(#REF!+F98+#REF!+F80+F77+F64+F53+F33+F21+F17)","v":{"$error":"#REF!"}}]

{"sheet":"RESUMEN","index":1,"n_rows":26,"n_cols":6,"rows_kept":26,"cut":false,"hidden":false,"merged":[[1,0,1,6],[3,0,3,6],[4,0,4,6],[50,0,50,6],[51,0,51,6],[2,1,2,5],[7,0,7,6],[8,0,8,6],[9,0,9,6]]}
[]
["GOBIERNO DEL ESTADO DE BAJA CALIFORNIA SUR"]
[null,"SECRETARIA DE PLANEACIÓN URBANA, INFRAESTRUCTURA Y MOVILIDAD"]
["DIRECCIÓN DE OBRAS PUBLICAS"]
["RESUMEN"]
[]
[]
[{"$f":"CATALOGO!A8","v":"OBRA: AMPLIACION DEL INSTITUTO SUDCALIFORNIANO PARA LA INTUICION DE PERSONAS CON DISCAPACIDAD (ISIPD) ETAPA 1"}]
[{"$f":"CATALOGO!A9","v":"UBICACIÓN: LA PAZ"}]
[{"$f":"CATALOGO!A10","v":"MUNICIPIO: LA PAZ, B.C.S."}]
[]
[{"$f":"CATALOGO!A13","v":"I.-"},{"$f":"CATALOGO!B13","v":"SEÑALIZACION"},null,null,null,{"$f":"CATALOGO!F17","v":0}]
[{"$f":"CATALOGO!A18","v":"II.-"},{"$f":"CATALOGO!B18","v":"PRELIMINARES"},null,null,null,{"$f":"CATALOGO!F21","v":0}]
[{"$f":"CATALOGO!A22","v":"III.-"},{"$f":"CATALOGO!B22","v":"CIMENTACION"},null,null,null,{"$f":"CATALOGO!F33","v":0}]
[{"$f":"CATALOGO!A34","v":"IV.-"},{"$f":"CATALOGO!B34","v":"ALBAÑILERÍA Y ACABADOS"},null,null,null,{"$f":"CATALOGO!F53","v":0}]
[{"$f":"CATALOGO!A54","v":"V.-"},{"$f":"CATALOGO!B54","v":"ESTRUCTURA"},null,null,null,{"$f":"CATALOGO!F64","v":0}]
[{"$f":"CATALOGO!A65","v":"VI.-"},{"$f":"CATALOGO!B65","v":"CANCELERIA Y HERRERIA"},null,null,null,{"$f":"CATALOGO!F77","v":0}]
[{"$f":"CATALOGO!A78","v":"VII.-"},{"$f":"CATALOGO!B78","v":"INSTALACIONES HIDROSANITARIAS "},null,null,null,{"$f":"CATALOGO!F80","v":0}]
[{"$f":"CATALOGO!A81","v":"IX.-."},{"$f":"CATALOGO!B81","v":"SEÑALETICA Y OBRA EXTERIOR"},null,null,null,{"$f":"CATALOGO!F98","v":0}]
[]
[]
[]
[]
[null,null,null,"SUBTOTAL",null,{"$f":"SUM(F12:F19)","v":0}]
[null,null,null,"I.V.A. 16 %",null,{"$f":"ROUND(F24*0.16,2)","v":0}]
[null,null,null,"TOTAL",null,{"$f":"SUM(F24:F25)","v":0}]